[Event "Elitserien 2019/2020, round 7-9"]
[Site "Elite stadshotellet, Kungsgatan 6, Vaxjo, Sweden"]
[Date "2020.10.17"]
[Round "2.14"]
[White "Norberg, Erik"]
[Black "Eklund, Joel"]
[Result "0-1"]
[TimeControl "90 minutes for 40 moves + 30 minutes for the rest of the game + 30 seconds per move from move one."]
[WhiteTitle "CM"]
[WhiteFideId "1707965"]
[BlackFideId "1705288"]
[WhiteElo "2241"]
[BlackElo "2216"]

1. g3 {[%clk 01:30:51]} {[%emt 00:00:08]} d5 {[%clk 01:28:39]} {[%emt
00:02:21]} 2. Bg2 {[%clk 01:30:03]} {[%emt 00:01:18]} e5 {[%clk 01:27:54]}
{[%emt 00:01:16]} 3. d3 {[%clk 01:26:13]} {[%emt 00:04:20]} c5 {[%clk
01:27:48]} {[%emt 00:00:37]} 4. Nf3 {[%clk 01:25:48]} {[%emt 00:00:54]} f6
{[%clk 01:27:49]} {[%emt 00:00:29]} 5. O-O {[%clk 01:25:27]} {[%emt 00:00:50]}
Bg4 {[%clk 01:27:46]} {[%emt 00:00:34]} 6. c3 {[%clk 01:15:40]} {[%emt
00:10:16]} Qd7 {[%clk 01:25:36]} {[%emt 00:02:41]} 7. Qc2 {[%clk 01:11:46]}
{[%emt 00:04:23]} Nc6 {[%clk 01:24:46]} {[%emt 00:01:19]} 8. e4 {[%clk
01:10:55]} {[%emt 00:01:21]} d4 {[%clk 01:24:58]} {[%emt 00:00:19]} 9. Nbd2
{[%clk 01:09:20]} {[%emt 00:02:05]} Bd6 {[%clk 01:24:38]} {[%emt 00:00:50]} 10.
Nc4 {[%clk 01:08:37]} {[%emt 00:01:13]} Bc7 {[%clk 01:24:50]} {[%emt 00:00:18]}
11. a4 {[%clk 01:08:21]} {[%emt 00:00:45]} Nge7 {[%clk 01:24:27]} {[%emt
00:00:53]} 12. Ne1 {[%clk 01:03:21]} {[%emt 00:05:31]} g5 {[%clk 01:17:36]}
{[%emt 00:07:22]} 13. f4 {[%clk 00:54:56]} {[%emt 00:08:54]} exf4 {[%clk
01:16:09]} {[%emt 00:01:58]} 14. gxf4 {[%clk 00:55:03]} {[%emt 00:00:23]} h6
{[%clk 01:16:16]} {[%emt 00:00:24]} 15. f5 {[%clk 00:45:03]} {[%emt 00:10:30]}
O-O-O {[%clk 01:10:45]} {[%emt 00:06:00]} 16. Rb1 {[%clk 00:37:19]} {[%emt
00:08:14]} Kb8 {[%clk 01:07:22]} {[%emt 00:03:54]} 17. Kh1 {[%clk 00:35:15]}
{[%emt 00:02:34]} Ne5 {[%clk 01:03:40]} {[%emt 00:04:12]} 18. Nxe5 {[%clk
00:31:16]} {[%emt 00:04:28]} Bxe5 {[%clk 01:04:01]} {[%emt 00:00:09]} 19. b4
{[%clk 00:26:59]} {[%emt 00:04:47]} dxc3 {[%clk 00:46:01]} {[%emt 00:18:30]} 20.
bxc5 {[%clk 00:26:40]} {[%emt 00:00:49]} Qc7 {[%clk 00:38:52]} {[%emt
00:07:39]} 21. d4 {[%clk 00:22:09]} {[%emt 00:05:01]} Rxd4 {[%clk 00:34:36]}
{[%emt 00:04:46]} 22. Qxc3 {[%clk 00:21:48]} {[%emt 00:00:50]} Be2 {[%clk
00:29:29]} {[%emt 00:05:37]} 23. Rg1 {[%clk 00:18:35]} {[%emt 00:03:44]} Rhd8
{[%clk 00:24:33]} {[%emt 00:05:25]} 24. Nc2 {[%clk 00:14:43]} {[%emt 00:04:22]}
Rc4 {[%clk 00:11:16]} {[%emt 00:13:46]} 25. Qb3 {[%clk 00:13:48]} {[%emt
00:01:25]} Rxc2 {[%clk 00:11:31]} {[%emt 00:00:16]} 26. Qxc2 {[%clk 00:13:55]}
{[%emt 00:00:23]} Bd3 {[%clk 00:11:58]} {[%emt 00:00:03]} 27. Qb3 {[%clk
00:13:56]} {[%emt 00:00:29]} Bxb1 {[%clk 00:12:22]} {[%emt 00:00:05]} 28. Qxb1
{[%clk 00:14:17]} {[%emt 00:00:09]} Bxh2 {[%clk 00:12:41]} {[%emt 00:00:12]} 29.
Rf1 {[%clk 00:14:13]} {[%emt 00:00:31]} Be5 {[%clk 00:12:58]} {[%emt 00:00:14]}
30. Be3 {[%clk 00:13:43]} {[%emt 00:01:00]} Nc6 {[%clk 00:12:41]} {[%emt
00:00:48]} 31. Qb3 {[%clk 00:12:41]} {[%emt 00:01:32]} h5 {[%clk 00:09:51]}
{[%emt 00:03:21]} 32. Rb1 {[%clk 00:08:46]} {[%emt 00:04:24]} Ka8 {[%clk
00:04:58]} {[%emt 00:05:22]} 33. Bf1 {[%clk 00:06:59]} {[%emt 00:02:18]} Nd4
{[%clk 00:03:15]} {[%emt 00:02:13]} 34. Bxd4 {[%clk 00:06:46]} {[%emt
00:00:43]} Rxd4 {[%clk 00:02:28]} {[%emt 00:01:17]} 35. Bc4 {[%clk 00:05:59]}
{[%emt 00:01:16]} Rd2 {[%clk 00:02:15]} {[%emt 00:00:43]} 36. Qb5 {[%clk
00:05:26]} {[%emt 00:01:03]} Rh2+ {[%clk 00:01:30]} {[%emt 00:01:16]} 0-1

[Event "Elitserien 2019/2020, round 7-9"]
[Site "Elite stadshotellet, Kungsgatan 6, Vaxjo, Sweden"]
[Date "2020.10.17"]
[Round "2.15"]
[White "Holst, Conny"]
[Black "Carlsson, Ludvig"]
[Result "1-0"]
[TimeControl "90 minutes for 40 moves + 30 minutes for the rest of the game + 30 seconds per move from move one."]
[WhiteTitle "FM"]
[BlackTitle "CM"]
[WhiteFideId "1701428"]
[BlackFideId "1727010"]
[WhiteElo "2128"]
[BlackElo "2199"]

1. d4 {[%clk 01:30:55]} {[%emt 00:00:04]} d5 {[%clk 01:30:49]} {[%emt
00:00:11]} 2. c4 {[%clk 01:31:17]} {[%emt 00:00:09]} c6 {[%clk 01:31:11]}
{[%emt 00:00:08]} 3. Nf3 {[%clk 01:31:25]} {[%emt 00:00:21]} Nf6 {[%clk
01:31:28]} {[%emt 00:00:12]} 4. Nc3 {[%clk 01:31:41]} {[%emt 00:00:16]} e6
{[%clk 01:31:27]} {[%emt 00:00:31]} 5. e3 {[%clk 01:31:09]} {[%emt 00:01:03]}
Nbd7 {[%clk 01:31:38]} {[%emt 00:00:19]} 6. Bd3 {[%clk 01:31:26]} {[%emt
00:00:12]} dxc4 {[%clk 01:31:54]} {[%emt 00:00:15]} 7. Bxc4 {[%clk 01:31:47]}
{[%emt 00:00:09]} b5 {[%clk 01:32:17]} {[%emt 00:00:07]} 8. Bd3 {[%clk
01:30:15]} {[%emt 00:02:02]} Bd6 {[%clk 01:31:11]} {[%emt 00:01:35]} 9. O-O
{[%clk 01:27:31]} {[%emt 00:03:14]} O-O {[%clk 01:31:25]} {[%emt 00:00:15]} 10.
e4 {[%clk 01:26:15]} {[%emt 00:01:47]} e5 {[%clk 01:31:41]} {[%emt 00:00:13]}
11. Be3 {[%clk 01:20:01]} {[%emt 00:06:43]} a6 {[%clk 01:17:07]} {[%emt
00:15:05]} 12. h3 {[%clk 01:16:40]} {[%emt 00:03:52]} exd4 {[%clk 01:11:58]}
{[%emt 00:05:39]} 13. Bxd4 {[%clk 01:11:42]} {[%emt 00:05:28]} Bc5 {[%clk
01:03:40]} {[%emt 00:08:47]} 14. Bc2 {[%clk 01:05:04]} {[%emt 00:07:08]} Qb6
{[%clk 00:56:27]} {[%emt 00:07:43]} 15. Re1 {[%clk 00:57:46]} {[%emt 00:07:48]}
Bxd4 {[%clk 00:54:37]} {[%emt 00:02:20]} 16. Qxd4 {[%clk 00:54:54]} {[%emt
00:03:22]} Qxd4 {[%clk 00:50:51]} {[%emt 00:04:15]} 17. Nxd4 {[%clk 00:55:02]}
{[%emt 00:00:22]} c5 {[%clk 00:51:09]} {[%emt 00:00:11]} 18. Nc6 {[%clk
00:49:24]} {[%emt 00:06:09]} Nb6 {[%clk 00:47:34]} {[%emt 00:04:05]} 19. Ne7+
{[%clk 00:42:11]} {[%emt 00:07:44]} Kh8 {[%clk 00:47:56]} {[%emt 00:00:08]} 20.
e5 {[%clk 00:42:27]} {[%emt 00:00:14]} Ng8 {[%clk 00:47:01]} {[%emt 00:01:24]}
21. Nxc8 {[%clk 00:38:55]} {[%emt 00:04:03]} Raxc8 {[%clk 00:46:41]} {[%emt
00:00:49]} 22. Rad1 {[%clk 00:38:08]} {[%emt 00:01:18]} Rfe8 {[%clk 00:37:25]}
{[%emt 00:09:45]} 23. f4 {[%clk 00:36:01]} {[%emt 00:02:36]} Rc7 {[%clk
00:34:40]} {[%emt 00:03:16]} 24. Rd6 {[%clk 00:31:06]} {[%emt 00:05:26]} Rb7
{[%clk 00:33:41]} {[%emt 00:01:30]} 25. Ne4 {[%clk 00:22:49]} {[%emt 00:08:46]}
Rc8 {[%clk 00:30:23]} {[%emt 00:03:48]} 26. Red1 {[%clk 00:19:41]} {[%emt
00:03:38]} b4 {[%clk 00:21:14]} {[%emt 00:09:39]} 27. Rd8 {[%clk 00:17:46]}
{[%emt 00:02:25]} Rbb8 {[%clk 00:20:44]} {[%emt 00:01:01]} 28. Nd6 {[%clk
00:17:29]} {[%emt 00:00:47]} Rxd8 {[%clk 00:11:33]} {[%emt 00:09:41]} 29. Nxf7#
{[%clk 00:17:48]} {[%emt 00:00:11]} 1-0

[Event "Elitserien 2019/2020, round 7-9"]
[Site "Elite stadshotellet, Kungsgatan 6, Vaxjo, Sweden"]
[Date "2020.10.17"]
[Round "2.16"]
[White "Eriksson, Anders"]
[Black "Mansson, Peter"]
[Result "0-1"]
[TimeControl "90 minutes for 40 moves + 30 minutes for the rest of the game + 30 seconds per move from move one."]
[WhiteTitle "FM"]
[WhiteFideId "1701053"]
[BlackFideId "1703048"]
[WhiteElo "2224"]
[BlackElo "2143"]

1. Nf3 {[%clk 01:30:42]} {[%emt 00:00:16]} c5 {[%clk 01:30:46]} {[%emt
00:00:15]} 2. c4 {[%clk 01:30:00]} {[%emt 00:01:12]} Nc6 {[%clk 01:31:07]}
{[%emt 00:00:10]} 3. d4 {[%clk 01:30:12]} {[%emt 00:00:17]} cxd4 {[%clk
01:31:17]} {[%emt 00:00:21]} 4. Nxd4 {[%clk 01:30:20]} {[%emt 00:00:22]} e5
{[%clk 01:31:04]} {[%emt 00:00:43]} 5. Nb5 {[%clk 01:30:19]} {[%emt 00:00:30]}
d6 {[%clk 01:31:12]} {[%emt 00:00:23]} 6. N1c3 {[%clk 01:29:42]} {[%emt
00:01:07]} a6 {[%clk 01:31:00]} {[%emt 00:00:42]} 7. Na3 {[%clk 01:30:01]}
{[%emt 00:00:11]} f5 {[%clk 01:24:11]} {[%emt 00:07:20]} 8. e4 {[%clk
01:26:42]} {[%emt 00:03:49]} Be7 {[%clk 01:22:49]} {[%emt 00:01:52]} 9. exf5
{[%clk 01:23:30]} {[%emt 00:03:42]} Bxf5 {[%clk 01:23:11]} {[%emt 00:00:08]} 10.
Bd3 {[%clk 01:23:21]} {[%emt 00:00:38]} Be6 {[%clk 01:22:12]} {[%emt 00:01:30]}
{loss due to white mobile phone gave sound} 0-1

[Event "Elitserien 2019/2020, round 7-9"]
[Site "Elite stadshotellet, Kungsgatan 6, Vaxjo, Sweden"]
[Date "2020.10.18"]
[Round "3.1"]
[White "Haitin, Ilja"]
[Black "Heberla, Bartlomiej"]
[Result "1/2-1/2"]
[TimeControl "90 minutes for 40 moves + 30 minutes for the rest of the game + 30 seconds per move from move one."]
[WhiteTitle "FM"]
[BlackTitle "GM"]
[WhiteFideId "4501764"]
[BlackFideId "1115120"]
[WhiteElo "2349"]
[BlackElo "2564"]

1. d4 {[%clk 01:30:59]} {[%emt 00:00:01]} d5 {[%clk 01:30:45]} {[%emt
00:00:15]} 2. c4 {[%clk 01:31:21]} {[%emt 00:00:08]} e6 {[%clk 01:31:12]}
{[%emt 00:00:03]} 3. Nc3 {[%clk 01:31:43]} {[%emt 00:00:08]} Nf6 {[%clk
01:31:36]} {[%emt 00:00:06]} 4. cxd5 {[%clk 01:32:03]} {[%emt 00:00:11]} exd5
{[%clk 01:32:02]} {[%emt 00:00:03]} 5. Bg5 {[%clk 01:32:27]} {[%emt 00:00:07]}
c6 {[%clk 01:32:26]} {[%emt 00:00:05]} 6. e3 {[%clk 01:32:48]} {[%emt
00:00:09]} Be7 {[%clk 01:32:48]} {[%emt 00:00:08]} 7. Qc2 {[%clk 01:32:59]}
{[%emt 00:00:19]} Nbd7 {[%clk 01:33:06]} {[%emt 00:00:11]} 8. Bd3 {[%clk
01:33:06]} {[%emt 00:00:24]} Nh5 {[%clk 01:25:09]} {[%emt 00:08:27]} 9. Bxe7
{[%clk 01:33:05]} {[%emt 00:00:32]} Qxe7 {[%clk 01:25:37]} {[%emt 00:00:02]} 10.
Nge2 {[%clk 01:32:33]} {[%emt 00:01:01]} g6 {[%clk 01:25:44]} {[%emt 00:00:23]}
11. O-O-O {[%clk 01:31:08]} {[%emt 00:01:54]} Nb6 {[%clk 01:25:53]} {[%emt
00:00:22]} 12. Ng3 {[%clk 01:28:40]} {[%emt 00:03:00]} Ng7 {[%clk 01:24:59]}
{[%emt 00:01:23]} 13. Kb1 {[%clk 01:19:11]} {[%emt 00:09:59]} h5 {[%clk
01:21:03]} {[%emt 00:04:26]} 14. e4 {[%clk 01:13:16]} {[%emt 00:06:26]} dxe4
{[%clk 01:07:26]} {[%emt 00:14:06]} 15. Ngxe4 {[%clk 01:13:05]} {[%emt
00:00:41]} Be6 {[%clk 01:07:14]} {[%emt 00:00:39]} 16. Nc5 {[%clk 00:45:32]}
{[%emt 00:28:06]} O-O-O {[%clk 01:02:00]} {[%emt 00:05:44]} 17. Be4 {[%clk
00:40:51]} {[%emt 00:05:12]} Bf5 {[%clk 00:57:38]} {[%emt 00:04:52]} 18. f3
{[%clk 00:37:01]} {[%emt 00:04:20]} Kb8 {[%clk 00:48:44]} {[%emt 00:09:21]} 19.
Qb3 {[%clk 00:33:39]} {[%emt 00:03:54]} Ne6 {[%clk 00:28:20]} {[%emt 00:20:54]}
20. Qb4 {[%clk 00:27:46]} {[%emt 00:06:24]} Qf6 {[%clk 00:25:25]} {[%emt
00:03:24]} 21. Nb3 {[%clk 00:19:47]} {[%emt 00:08:30]} Nf4 {[%clk 00:16:54]}
{[%emt 00:09:00]} 22. Nc5 {[%clk 00:16:05]} {[%emt 00:04:13]} Ne6 {[%clk
00:16:14]} {[%emt 00:01:09]} 23. Nb3 {[%clk 00:15:46]} {[%emt 00:00:50]} Nc7
{[%clk 00:13:45]} {[%emt 00:02:59]} 24. Nc5 {[%clk 00:11:45]} {[%emt 00:04:31]}
Ne6 {[%clk 00:07:00]} {[%emt 00:07:14]} 1/2-1/2

[Event "Elitserien 2019/2020, round 7-9"]
[Site "Elite stadshotellet, Kungsgatan 6, Vaxjo, Sweden"]
[Date "2020.10.18"]
[Round "3.2"]
[White "Gdanski, Jacek"]
[Black "Akerman, Axel"]
[Result "1-0"]
[TimeControl "90 minutes for 40 moves + 30 minutes for the rest of the game + 30 seconds per move from move one."]
[WhiteTitle "GM"]
[WhiteFideId "1100106"]
[BlackFideId "1715810"]
[WhiteElo "2482"]
[BlackElo "2199"]

1. e4 {[%clk 01:30:57]} {[%emt 00:00:03]} c5 {[%clk 01:30:56]} {[%emt
00:00:04]} 2. Nc3 {[%clk 01:31:22]} {[%emt 00:00:04]} Nc6 {[%clk 01:30:14]}
{[%emt 00:01:12]} 3. Nf3 {[%clk 01:31:48]} {[%emt 00:00:04]} g6 {[%clk
01:30:05]} {[%emt 00:00:39]} 4. Bb5 {[%clk 01:32:14]} {[%emt 00:00:05]} Nd4
{[%clk 01:28:50]} {[%emt 00:01:45]} 5. Bc4 {[%clk 01:25:01]} {[%emt 00:07:44]}
Bg7 {[%clk 01:28:49]} {[%emt 00:00:30]} 6. Nxd4 {[%clk 01:24:37]} {[%emt
00:00:54]} cxd4 {[%clk 01:29:13]} {[%emt 00:00:05]} 7. Qf3 {[%clk 01:25:03]}
{[%emt 00:00:04]} Nh6 {[%clk 01:28:06]} {[%emt 00:01:37]} 8. d3 {[%clk
01:23:44]} {[%emt 00:01:51]} dxc3 {[%clk 01:22:48]} {[%emt 00:05:48]} 9. Bxh6
{[%clk 01:22:39]} {[%emt 00:01:34]} O-O {[%clk 01:22:08]} {[%emt 00:01:10]} 10.
Bxg7 {[%clk 01:22:27]} {[%emt 00:00:43]} Kxg7 {[%clk 01:22:26]} {[%emt
00:00:12]} 11. bxc3 {[%clk 01:20:59]} {[%emt 00:01:58]} Qc7 {[%clk 01:20:56]}
{[%emt 00:01:59]} 12. O-O {[%clk 01:19:17]} {[%emt 00:02:12]} Rb8 {[%clk
01:20:41]} {[%emt 00:00:46]} 13. a4 {[%clk 01:18:59]} {[%emt 00:00:48]} b6
{[%clk 01:16:32]} {[%emt 00:04:39]} 14. Qe3 {[%clk 01:15:13]} {[%emt 00:04:15]}
e6 {[%clk 00:56:13]} {[%emt 00:20:50]} 15. f4 {[%clk 01:10:48]} {[%emt
00:04:55]} f5 {[%clk 00:54:28]} {[%emt 00:02:16]} 16. Qd4+ {[%clk 01:01:07]}
{[%emt 00:10:10]} Kg8 {[%clk 00:44:37]} {[%emt 00:10:21]} 17. e5 {[%clk
00:54:09]} {[%emt 00:07:29]} Bb7 {[%clk 00:40:53]} {[%emt 00:04:14]} 18. Rf2
{[%clk 00:54:35]} {[%emt 00:00:04]} Rbc8 {[%clk 00:39:40]} {[%emt 00:01:44]} 19.
Qe3 {[%clk 00:35:19]} {[%emt 00:19:45]} Rf7 {[%clk 00:39:23]} {[%emt 00:00:47]}
20. h4 {[%clk 00:28:29]} {[%emt 00:07:20]} h6 {[%clk 00:34:15]} {[%emt
00:05:38]} 21. Rb1 {[%clk 00:19:14]} {[%emt 00:09:45]} Ba8 {[%clk 00:23:43]}
{[%emt 00:11:01]} 22. Ba6 {[%clk 00:18:17]} {[%emt 00:01:27]} Rcf8 {[%clk
00:23:49]} {[%emt 00:00:24]} 23. d4 {[%clk 00:17:40]} {[%emt 00:01:08]} g5
{[%clk 00:21:26]} {[%emt 00:02:53]} 24. hxg5 {[%clk 00:16:25]} {[%emt
00:01:45]} hxg5 {[%clk 00:21:49]} {[%emt 00:00:06]} 25. Bf1 {[%clk 00:12:54]}
{[%emt 00:04:01]} Rg7 {[%clk 00:18:57]} {[%emt 00:03:22]} 26. fxg5 {[%clk
00:09:59]} {[%emt 00:03:26]} Qd8 {[%clk 00:19:12]} {[%emt 00:00:15]} 27. a5
{[%clk 00:09:22]} {[%emt 00:01:07]} bxa5 {[%clk 00:18:18]} {[%emt 00:01:24]} 28.
c4 {[%clk 00:09:48]} {[%emt 00:00:03]} Rxg5 {[%clk 00:17:15]} {[%emt 00:01:33]}
29. d5 {[%clk 00:09:34]} {[%emt 00:00:45]} Qe7 {[%clk 00:16:25]} {[%emt
00:01:20]} 30. Qxa7 {[%clk 00:08:42]} {[%emt 00:01:22]} exd5 {[%clk 00:16:03]}
{[%emt 00:00:52]} 31. Rb8 {[%clk 00:06:31]} {[%emt 00:02:41]} Bc6 {[%clk
00:15:41]} {[%emt 00:00:52]} 32. Rxf8+ {[%clk 00:06:10]} {[%emt 00:00:51]} Kxf8
{[%clk 00:16:10]} {[%emt 00:00:02]} 33. cxd5 {[%clk 00:05:35]} {[%emt
00:01:06]} Bxd5 {[%clk 00:15:26]} {[%emt 00:01:13]} 34. Qxa5 {[%clk 00:06:01]}
{[%emt 00:00:04]} Bc6 {[%clk 00:15:27]} {[%emt 00:00:29]} 35. Qd2 {[%clk
00:05:04]} {[%emt 00:01:27]} Kg7 {[%clk 00:13:40]} {[%emt 00:02:17]} 36. Qf4
{[%clk 00:03:21]} {[%emt 00:02:12]} Kg6 {[%clk 00:12:03]} {[%emt 00:02:09]} 37.
Bd3 {[%clk 00:03:38]} {[%emt 00:00:12]} Qe6 {[%clk 00:11:07]} {[%emt 00:01:26]}
38. g4 {[%clk 00:03:22]} {[%emt 00:00:46]} Be4 {[%clk 00:08:08]} {[%emt
00:03:29]} 39. Bxe4 {[%clk 00:03:41]} {[%emt 00:00:11]} fxe4 {[%clk 00:08:25]}
{[%emt 00:00:13]} 40. Qxe4+ {[%clk 00:03:19]} {[%emt 00:00:53]} Kg7 {[%clk
00:08:52]} {[%emt 00:00:02]} 41. Rf5 {[%clk 00:03:37]} {[%emt 00:00:12]} Rg6
{[%clk 00:07:27]} {[%emt 00:01:55]} 42. Kg2 {[%clk 00:02:34]} {[%emt 00:01:32]}
d5 {[%clk 00:00:43]} {[%emt 00:07:15]} 43. Qf3 {[%clk 00:29:10]} {[%emt
00:03:53]} Qe7 {[%clk 00:26:11]} {[%emt 00:05:02]} 44. c3 {[%clk 00:19:32]}
{[%emt 00:10:08]} Qc5 {[%clk 00:24:26]} {[%emt 00:02:15]} 45. Rf7+ {[%clk
00:19:15]} {[%emt 00:00:46]} Kg8 {[%clk 00:24:31]} {[%emt 00:00:25]} 46. Rd7
{[%clk 00:19:27]} {[%emt 00:00:19]} Qf8 {[%clk 00:19:26]} {[%emt 00:05:35]} 47.
Qxd5+ {[%clk 00:19:33]} {[%emt 00:00:24]} 1-0

[Event "Elitserien 2019/2020, round 7-9"]
[Site "Elite stadshotellet, Kungsgatan 6, Vaxjo, Sweden"]
[Date "2020.10.18"]
[Round "3.3"]
[White "Krupenski, Juri"]
[Black "Vernersson, Per"]
[Result "1-0"]
[TimeControl "90 minutes for 40 moves + 30 minutes for the rest of the game + 30 seconds per move from move one."]
[WhiteTitle "IM"]
[WhiteFideId "4501101"]
[BlackFideId "1700863"]
[WhiteElo "2386"]
[BlackElo "2264"]

1. d4 {[%clk 01:30:51]} {[%emt 00:00:08]} d5 {[%clk 01:30:46]} {[%emt
00:00:13]} 2. c4 {[%clk 01:31:14]} {[%emt 00:00:08]} e6 {[%clk 01:31:04]}
{[%emt 00:00:11]} 3. Nf3 {[%clk 01:31:37]} {[%emt 00:00:09]} Nf6 {[%clk
01:31:19]} {[%emt 00:00:15]} 4. g3 {[%clk 01:31:58]} {[%emt 00:00:09]} Be7
{[%clk 01:31:27]} {[%emt 00:00:21]} 5. Bg2 {[%clk 01:32:21]} {[%emt 00:00:08]}
O-O {[%clk 01:31:43]} {[%emt 00:00:13]} 6. O-O {[%clk 01:32:43]} {[%emt
00:00:08]} dxc4 {[%clk 01:31:45]} {[%emt 00:00:28]} 7. Qc2 {[%clk 01:32:15]}
{[%emt 00:00:59]} a6 {[%clk 01:31:40]} {[%emt 00:00:34]} 8. a4 {[%clk
01:32:30]} {[%emt 00:00:16]} Bd7 {[%clk 01:30:24]} {[%emt 00:01:45]} 9. Rd1
{[%clk 01:31:41]} {[%emt 00:01:20]} Bc6 {[%clk 01:29:55]} {[%emt 00:00:59]} 10.
Nc3 {[%clk 01:32:03]} {[%emt 00:00:08]} Nbd7 {[%clk 01:17:41]} {[%emt
00:12:44]} 11. e4 {[%clk 01:32:26]} {[%emt 00:00:07]} b5 {[%clk 01:16:20]}
{[%emt 00:01:51]} 12. d5 {[%clk 01:31:32]} {[%emt 00:01:25]} exd5 {[%clk
01:15:55]} {[%emt 00:00:55]} 13. e5 {[%clk 01:31:15]} {[%emt 00:00:46]} Ne4
{[%clk 01:05:53]} {[%emt 00:10:32]} 14. Nxd5 {[%clk 01:23:16]} {[%emt
00:08:30]} Bxd5 {[%clk 00:49:55]} {[%emt 00:16:27]} 15. Rxd5 {[%clk 01:22:24]}
{[%emt 00:01:22]} Nec5 {[%clk 00:50:15]} {[%emt 00:00:09]} 16. axb5 {[%clk
01:22:23]} {[%emt 00:00:32]} Qe8 {[%clk 00:45:17]} {[%emt 00:05:28]} 17. Ng5
{[%clk 01:04:29]} {[%emt 00:18:24]} Nd3 {[%clk 00:40:02]} {[%emt 00:05:44]} 18.
Rxd7 {[%clk 00:49:28]} {[%emt 00:15:31]} Qxd7 {[%clk 00:38:35]} {[%emt
00:01:57]} 19. Bxa8 {[%clk 00:49:48]} {[%emt 00:00:10]} Rxa8 {[%clk 00:37:37]}
{[%emt 00:01:27]} 20. Qxc4 {[%clk 00:49:38]} {[%emt 00:00:40]} Bxg5 {[%clk
00:32:35]} {[%emt 00:05:32]} 21. Bxg5 {[%clk 00:49:51]} {[%emt 00:00:18]} h6
{[%clk 00:32:51]} {[%emt 00:00:14]} 22. Qe4 {[%clk 00:41:21]} {[%emt 00:09:00]}
Re8 {[%clk 00:32:10]} {[%emt 00:01:10]} 23. bxa6 {[%clk 00:41:26]} {[%emt
00:00:25]} Nc5 {[%clk 00:29:08]} {[%emt 00:03:33]} 24. Qc4 {[%clk 00:40:54]}
{[%emt 00:01:03]} Nxa6 {[%clk 00:29:25]} {[%emt 00:00:13]} 25. Bxh6 {[%clk
00:41:12]} {[%emt 00:00:12]} Nb8 {[%clk 00:29:04]} {[%emt 00:00:51]} 26. Bf4
{[%clk 00:40:09]} {[%emt 00:01:33]} Nc6 {[%clk 00:28:38]} {[%emt 00:00:56]} 27.
Qe4 {[%clk 00:36:02]} {[%emt 00:04:37]} Nd8 {[%clk 00:27:08]} {[%emt 00:02:00]}
28. Be3 {[%clk 00:34:23]} {[%emt 00:02:08]} Qe6 {[%clk 00:24:54]} {[%emt
00:02:46]} 29. Rc1 {[%clk 00:33:27]} {[%emt 00:01:26]} Qxe5 {[%clk 00:21:42]}
{[%emt 00:03:42]} 30. Qxe5 {[%clk 00:33:50]} {[%emt 00:00:07]} Rxe5 {[%clk
00:22:06]} {[%emt 00:00:05]} 31. Rxc7 {[%clk 00:34:14]} {[%emt 00:00:06]} Ne6
{[%clk 00:22:09]} {[%emt 00:00:27]} 32. Rb7 {[%clk 00:34:21]} {[%emt 00:00:23]}
1-0